Workbook

Sheet анализ
A1: Информация по учету и перечислению поступлений
A2: в бюджеты бюджетной системы Российской Федерации на территории Курганской области
A3: с казначейского счета для осуществления и отражения операций по учету и распределению поступлений
A4: на 1 апреля 2024 года
A5: Показатели | B5: на 1 апреля 2024 года | D5: на 1 апреля 2023 года | F5: Изменение
B6: Сумма, млн.руб. | C6: Уд. вес , % | D6: Сумма, млн. руб. | E6: Уд. вес , % | F6: Абсолютное (+,-), млн. руб. | G6: Относи-тельное, %
A7: 1 | B7: 2 | C7: 3 | D7: 4 | E7: 5 | F7: 6 | G7: 7
A8: Поступило платежей на казначейский счет для осуществления и отражения операций по учету и распределению поступлений | B8: 19522.6 | C8: 1 | D8: 19276 | E8: 1 | F8: =B8-D8 -> 246.6 | G8: =F8/D8 -> 0.0127931106
A9: Из них:
A10: Возвращено платежей плательщикам и участникам системы казначейских платежей | B10: 657.8 | C10: =B10/B$8 -> 0.03369428252 | D10: 768.2 | E10: =D10/D$8 -> 0.03985266653 | F10: =B10-D10 -> -110.4 | G10: =F10/D10 -> -0.1437125749
A11: Перечислено в бюджеты, всего: | B11: 18837.3 | C11: =B11/B$8 -> 0.9648970936 | D11: 18474 | E11: =D11/D$8 -> 0.9583938576 | F11: =B11-D11 -> 363.3 | G11: =F11/D11 -> 0.0196654758
A12: в том числе:
A13: Федеральный бюджет | B13: 320.9 | C13: =B13/B$8 -> 0.01643735978 | D13: 721.9 | E13: =D13/D$8 -> 0.03745071592 | F13: =B13-D13 -> -401 | G13: =F13/D13 -> -0.5554785981
A14: Бюджет субъекта Российской Федерации | B14: 6395.8 | C14: 0.3276100519 | D14: 6609.1 | E14: 0.344 | F14: -213.3 | G14: -0.03227368325
A15: Бюджеты муниципальных образований | B15: 6026.7 | C15: 0.3087037587 | D15: 5015.5 | E15: =D15/D$8 -> 0.2601940237 | F15: 1011.2 | G15: 0.2016149935
A16: Фонд пенсионного и социального страхования Российской Федерации | B16: 273.2 | C16: 0.01399403768 | D16: 182.9 | E16: =D16/D$8 -> 0.009488483088 | F16: 90.3 | G16: 0.4937124112
A17: Федеральный фонд обязательного медицинского страхования | B17: 1270.8 | C17: 0.06509378874 | D17: 1587.8 | E17: =D17/D$8 -> 0.08237186138 | F17: -317 | G17: -0.1996473107
A18: Территориальный фонд обязательного медицинского страхования | B18: 4549.9 | C18: 0.2330580968 | D18: 4356.8 | E18: =D18/D$8 -> 0.2260219963 | F18: 193.1 | G18: 0.04432152038
A19: Остаток на счете | B19: 27.5 | C19: 0.001408623851 | D19: 33.8 | E19: =D19/D$8 -> 0.001753475825 | F19: -6.3 | G19: -0.1863905325
